bitfinex-derivatives/quotes_ETHF0:USTF0_20230902
["timestamp","ask_amount","ask_price","bid_price","bid_amount"]
[1693675664648,7.20422363,1637.7,1637.6,16.43246378]
[1693675666548,7.20422363,1637.7,1637.6,13.83285916]
[1693675667748,7.20422363,1637.7,1637.6,16.43246378]
[1693675667948,8.80709555,1637.7,1637.6,16.43246378]
[1693675668151,8.80709555,1637.7,1637.6,13.83285916]
[1693675668544,8.80709555,1637.7,1637.6,16.43246378]
[1693675669346,8.80709555,1637.7,1637.6,13.83285916]
[1693675671047,8.80709555,1637.7,1637.6,16.43246378]
[1693675671651,8.80709555,1637.7,1637.6,13.83285916]
[1693675671949,8.80709555,1637.7,1637.6,13.94508849]
[1693675675240,8.80709555,1637.7,1637.6,16.54469311]
[1693675675445,8.80709555,1637.7,1637.6,13.94508849]
[1693675676043,7.20422363,1637.7,1637.6,13.94508849]
[1693675678148,7.20422363,1637.7,1637.6,16.54469311]
[1693675678348,4.33706011,1637.7,1637.6,16.54469311]
[1693675679253,7.20422363,1637.7,1637.6,16.54469311]
[1693675683258,8.80722094,1637.7,1637.6,16.54469311]
[1693675686156,8.80722094,1637.7,1637.6,13.94508849]
[1693675686956,8.80722094,1637.7,1637.6,16.54469311]
[1693675687155,8.80722094,1637.7,1637.6,16.43246378]
[1693675688057,5.94005742,1637.7,1637.6,16.43246378]
[1693675688249,8.80722094,1637.7,1637.6,16.43246378]
[1693675688959,5.94005742,1637.7,1637.6,16.43246378]
[1693675689564,8.80722094,1637.7,1637.6,16.43246378]
[1693675689858,5.94005742,1637.7,1637.6,16.43246378]
[1693675690259,8.80722094,1637.7,1637.6,16.43246378]
[1693675691058,7.20422363,1637.7,1637.6,16.43246378]
[1693675692054,4.33706011,1637.7,1637.6,16.43246378]
[1693675692560,7.20422363,1637.7,1637.6,16.43246378]
[1693675693463,7.20422363,1637.7,1637.6,13.83285916]
[1693675694262,7.20422363,1637.7,1637.6,16.43246378]
[1693675694457,7.20422363,1637.7,1637.6,13.83285916]
[1693675695059,7.20422363,1637.7,1637.6,16.43246378]
[1693675697471,7.20422363,1637.7,1637.6,13.83285916]
[1693675697671,12.69522363,1637.7,1637.6,1.41805254]
[1693675697871,12.69522363,1637.7,1637.4,12.69470518]
[1693675697872,12.69522363,1637.7,1637.3,6.88943396]
[1693675698072,1.60299731,1637.5,1637.3,6.88943396]
[1693675698262,1.60299731,1637.5,1637.4,6.63144505]
[1693675698465,6.80519731,1637.5,1637.4,6.63144505]
[1693675698872,9.67766608,1637.5,1637.4,6.63144505]
[1693675700572,8.07466877,1637.5,1637.4,6.63144505]
[1693675702275,8.07466877,1637.5,1637.4,6.74368907]
[1693675704877,8.07466877,1637.5,1637.4,9.34329369]
[1693675705178,8.07466877,1637.5,1637.4,6.74368907]
[1693675706873,8.07466877,1637.5,1637.4,9.34329369]
[1693675707073,8.07466877,1637.5,1637.4,6.74368907]
[1693675717378,8.07466877,1637.5,1637.4,6.63144505]
[1693675717982,5.47556877,1637.5,1637.4,6.63144505]
[1693675725492,5.47556877,1637.5,1637.4,6.74368991]
[1693675733500,5.47556877,1637.5,1637.4,9.34329453]
[1693675734703,5.47556877,1637.5,1637.4,6.74368991]
[1693675740810,5.47556877,1637.5,1637.4,6.63144505]
[1693675743403,7.07618353,1637.5,1637.4,6.63144505]
[1693675743702,7.87649091,1637.5,1637.4,6.63144505]
[1693675750311,5.47556877,1637.5,1637.4,6.63144505]
[1693675756108,5.47556877,1637.5,1637.4,6.74368989]
[1693675756314,0.00530525,1637.5,1637.4,14.89539451]
[1693675756716,0.00530525,1637.5,1637.4,19.83789451]
[1693675756909,4.9367,1637.7,1637.5,0.0611]
[1693675757107,7.80386352,1637.7,1637.5,0.0611]
[1693675757817,7.80386352,1637.7,1637.5,1.27036344]
[1693675758118,0.00531523,1637.6,1637.5,1.27036344]
[1693675758316,2.40623737,1637.6,1637.5,3.86996806]
[1693675761417,1.01733739,1637.7,1637.5,3.86996806]
[1693675761620,19.36078142,1637.9,1637.6,11.09422908]
[1693675761621,3.20122952,1637.9,1637.6,11.09422908]
[1693675761823,19.52082952,1638.0,1637.8,5.491]
[1693675762117,0.00491677,1637.8,1637.7,6.5885295]
[1693675762419,0.00491677,1637.8,1637.7,8.8607422]
[1693675762821,0.00491677,1637.8,1637.7,10.07000564]
[1693675763022,5.72582952,1638.0,1637.7,10.07000564]
[1693675763222,5.72582952,1638.0,1637.9,5.491]
[1693675763223,2.5246,1638.0,1637.9,5.491]
[1693675763420,2.82997386,1638.0,1637.9,8.09060462]
[1693675763623,2.82997386,1638.0,1637.9,14.65757204]
[1693675763821,2.82997386,1638.0,1637.9,15.86683548]
[1693675765128,2.5246,1638.0,1637.9,15.86683548]
[1693675772223,2.5304,1638.1,1637.9,15.86683548]
[1693675775830,2.5304,1638.1,1637.9,16.36206914]
[1693675776927,0.00493356,1638.0,1637.9,16.36206914]
[1693675782032,5.0708,1638.2,1637.9,16.36206914]
[1693675782226,5.0708,1638.2,1638.1,5.491]
[1693675782530,5.0708,1638.2,1638.1,14.69027057]
[1693675782729,5.0708,1638.2,1638.1,15.89953401]
[1693675788640,8.57737074,1638.2,1638.1,15.89953401]
[1693675790147,11.44453426,1638.2,1638.1,13.77424547]
[1693675790338,8.57737074,1638.2,1638.1,13.77424547]
[1693675791942,8.58231854,1638.2,1638.1,13.77424547]
[1693675792240,11.44948206,1638.2,1638.1,13.77424547]
[1693675794642,11.44948206,1638.2,1638.1,7.17457952]
[1693675794940,11.44948206,1638.2,1638.1,4.5749749]
[1693675795752,7.94291132,1638.2,1638.1,4.5749749]
[1693675796844,5.0757478,1638.2,1638.1,7.17457952]
[1693675798443,5.0757478,1638.2,1638.1,7.6594354]
[1693675800152,7.94291132,1638.2,1638.1,7.6594354]
[1693675801154,7.94291132,1638.2,1638.1,0.48485588]
[1693675801352,7.94291132,1638.2,1638.0,5.491]
[1693675801545,2.26993648,1638.1,1638.0,5.491]
[1693675804455,2.26993648,1638.1,1638.0,8.09060462]
[1693675805157,2.26993648,1638.1,1638.0,5.491]
[1693675808758,2.26993648,1638.1,1638.0,5.60321647]
[1693675809353,2.26993648,1638.1,1638.0,8.20282109]
[1693675810457,2.26993648,1638.1,1638.0,5.60321647]
[1693675810857,2.26993648,1638.1,1638.0,8.20282109]
[1693675811159,2.26993648,1638.1,1638.0,5.60321647]
[1693675811756,2.26993648,1638.1,1638.0,8.20282109]
[1693675813059,2.26993648,1638.1,1638.0,5.60321647]
[1693675813255,2.26993648,1638.1,1638.0,8.20282109]
[1693675815859,2.26993648,1638.1,1638.0,8.09060462]
[1693675817363,2.26993648,1638.1,1638.0,5.491]
[1693675817761,5.77651766,1638.1,1638.0,5.491]
[1693675819062,5.77651766,1638.1,1638.0,8.09060462]
[1693675821466,5.77651766,1638.1,1638.0,5.491]
[1693675822572,5.78146927,1638.1,1638.0,5.491]
[1693675822973,5.78146927,1638.1,1638.0,8.09060462]
[1693675825576,5.78146927,1638.1,1638.0,5.491]
[1693675826275,5.78146927,1638.1,1638.0,8.09060462]
[1693675827573,11.27246927,1638.1,1637.9,3.06903366]
[1693675827880,2.40389222,1638.0,1637.9,3.06903366]
[1693675828078,5.27105574,1638.0,1637.9,3.06903366]
[1693675828379,5.27105574,1638.0,1637.9,5.66863828]
[1693675830481,2.40389222,1638.0,1637.9,5.66863828]
[1693675830881,5.27105574,1638.0,1637.9,5.66863828]
[1693675831077,2.40389222,1638.0,1637.9,5.66863828]
[1693675831980,5.27105574,1638.0,1637.9,11.15963828]
[1693675832284,2.40389222,1638.0,1637.9,11.15963828]
[1693675832780,3.51153184,1638.1,1637.9,11.15963828]
[1693675832983,0.00495161,1638.1,1637.9,12.36890172]
[1693675833583,10.5618,1638.2,1637.9,12.36890172]
[1693675834880,12.83173648,1638.2,1637.9,12.36890172]
[1693675836383,2.5148,1638.2,1638.0,5.491]
[1693675836584,0.00495161,1638.1,1638.0,5.491]
[1693675837179,0.00495161,1638.1,1638.0,8.09060462]
[1693675837581,2.5148,1638.2,1638.0,8.09060462]
[1693675840892,4.91869222,1638.2,1638.0,8.09060462]
[1693675841589,7.78585574,1638.2,1638.0,8.09060462]
[1693675841788,4.91869222,1638.2,1638.0,8.09060462]
[1693675843184,7.78585574,1638.2,1638.0,8.09060462]
[1693675848088,2.70922322,1638.1,1638.0,8.09060462]
[1693675851598,2.71417483,1638.1,1638.0,8.09060462]
[1693675852393,2.40884383,1638.1,1638.0,8.09060462]
[1693675856097,0.00495161,1638.1,1638.0,8.09060462]
[1693675856607,2.52395723,1638.2,1638.0,8.09060462]
[1693675858404,2.52395723,1638.2,1638.1,1.20926344]
[1693675858604,2.52395723,1638.2,1638.1,6.70026344]
[1693675860196,0.00915723,1638.2,1638.1,6.70026344]
[1693675860403,0.00915723,1638.2,1638.1,18.60697273]
[1693675860601,0.00915723,1638.2,1638.1,21.06017273]
[1693675862007,0.00915723,1638.2,1638.1,15.56917273]
[1693675866811,0.0141166,1638.2,1638.1,15.56917273]
[1693675870915,0.0141166,1638.2,1638.1,16.4861233]
[1693675872614,0.0141166,1638.2,1638.1,16.97115828]
[1693675875617,4.5658532,1638.3,1638.2,2.59960462]
[1693675875813,4.5658532,1638.3,1638.2,5.491]
[1693675876612,4.57063307,1638.3,1638.2,8.09060462]
[1693675878317,4.57063307,1638.3,1638.2,14.98252252]
[1693675881716,6.17044729,1638.3,1638.2,14.98252252]
[1693675885423,4.57063307,1638.3,1638.2,14.98252252]
[1693675886028,0.00477987,1638.3,1638.2,14.98252252]
[1693675886525,2.3837,1638.4,1638.2,14.98252252]
[1693675886726,2.3837,1638.4,1638.3,5.491]
[1693675887621,2.38849292,1638.4,1638.3,5.491]
[1693675888727,2.38849292,1638.4,1638.3,13.33590042]
[1693675890328,0.00479292,1638.4,1638.3,13.33590042]
[1693675891126,16.95155873,1638.7,1638.5,0.061]
[1693675891127,2.5614,1638.7,1638.5,0.061]
[1693675891330,2.5614,1638.7,1638.6,5.552]
[1693675891534,2.5614,1638.7,1638.6,8.09060462]
[1693675893124,2.3848,1638.8,1638.7,0.061]
[1693675893330,3.98461422,1638.8,1638.7,6.76126344]
[1693675893520,2.3848,1638.8,1638.7,6.76126344]
[1693675895432,3.98461422,1638.8,1638.7,6.76126344]
[1693675895624,4.00238293,1638.9,1638.7,6.76126344]
[1693675895935,1.59981422,1638.9,1638.8,8.09060462]
[1693675896232,4.00238293,1638.9,1638.8,8.09060462]
[1693675896429,1.59981422,1638.9,1638.8,8.09060462]
[1693675898732,1.6044827,1638.9,1638.8,8.09060462]
[1693675900737,4.00705141,1638.9,1638.8,2.59960462]
[1693675900932,4.00705141,1638.9,1638.8,8.09060462]
[1693675901132,1.6044827,1638.9,1638.8,8.09060462]
[1693675901336,6.38046717,1638.9,1638.8,5.491]
[1693675901632,6.38046717,1638.9,1638.8,7.17497263]
[1693675902230,6.37042588,1638.9,1638.8,7.17497263]
[1693675902428,3.17704222,1638.9,1638.8,7.17497263]
[1693675902634,7.18132341,1638.9,1638.8,7.17497263]
[1693675903035,7.18132341,1638.9,1638.8,5.491]
[1693675903237,18.77689487,1638.9,1638.6,5.9838005]
[1693675903436,2.39520514,1638.7,1638.6,5.491]
[1693675903737,0.30521022,1638.7,1638.6,5.491]
[1693675903933,3.49881708,1638.7,1638.6,7.17497263]
[1693675904241,5.56779477,1638.7,1638.6,5.491]
[1693675904634,3.17237374,1638.7,1638.6,5.491]
[1693675904836,3.17237374,1638.7,1638.6,7.17497263]
[1693675905236,6.3659806,1638.7,1638.6,7.17497263]
[1693675905737,6.3659806,1638.7,1638.6,5.491]
[1693675906440,6.3659806,1638.7,1638.6,7.17497263]
[1693675907244,3.17237374,1638.7,1638.6,7.17497263]
[1693675907542,5.56804447,1638.7,1638.6,7.17497263]
[1693675908136,3.17237374,1638.7,1638.6,7.17497263]
[1693675908337,2.86716352,1638.7,1638.6,7.17497263]
[1693675910044,2.86716352,1638.7,1638.6,5.491]
[1693675910545,2.86716352,1638.7,1638.6,7.17497263]
[1693675911443,2.86716352,1638.7,1638.6,5.491]
[1693675911642,2.87180593,1638.7,1638.6,5.491]
[1693675912242,2.87180593,1638.7,1638.6,7.17497263]
[1693675912845,0.00464241,1638.7,1638.6,7.17497263]
[1693675916049,2.87180593,1638.7,1638.6,7.17497263]
[1693675916248,6.86459525,1638.7,1638.6,7.17497263]
[1693675916746,4.46892166,1638.7,1638.6,7.17497263]
[1693675917357,6.86459525,1638.7,1638.6,7.17497263]
[1693675917656,4.46892166,1638.7,1638.6,7.17497263]
[1693675919767,4.46892166,1638.7,1638.6,5.491]
[1693675921266,5.26747952,1638.7,1638.6,5.491]
[1693675921966,6.37066963,1638.7,1638.5,5.98485911]
[1693675922257,4.66709839,1638.6,1638.5,5.98485911]
[1693675922662,7.24709839,1638.6,1638.5,5.98485911]
[1693675923458,4.84993648,1638.6,1638.5,5.98485911]
[1693675925866,4.84993648,1638.6,1638.2,4.9995]
[1693675925867,10.34093648,1638.6,1638.2,0.061]
[1693675926065,5.491,1638.5,1638.2,5.552]
[1693675926364,5.1371,1638.4,1638.2,5.491]
[1693675926565,7.63721386,1638.4,1638.2,5.491]
[1693675926865,10.11961386,1638.4,1638.2,5.98659207]
[1693675928163,10.11961386,1638.4,1638.2,6.04759207]
[1693675930573,3.99686888,1638.3,1638.2,6.04759207]
[1693675931573,2.39812133,1638.3,1638.2,6.04759207]
[1693675931872,2.39812133,1638.3,1638.2,5.98659207]
[1693675933074,7.88912133,1638.3,1638.0,5.491]
[1693675933273,11.86869047,1638.2,1638.0,5.491]
[1693675933474,14.2668118,1638.2,1638.0,5.491]
[1693675933773,1.59779047,1638.1,1638.0,5.491]
[1693675934766,1.59779047,1638.1,1638.0,5.98197948]
[1693675936672,10.2709,1638.2,1638.0,5.98197948]
[1693675936874,2.05920652,1638.1,1638.0,5.98197948]
[1693675937175,2.05920652,1638.1,1638.0,6.04297948]
[1693675937476,2.05920652,1638.1,1638.0,5.98197948]
[1693675938576,1.59698427,1638.1,1638.0,5.98197948]
[1693675938774,10.2709,1638.2,1638.0,5.98197948]
[1693675938974,10.2709,1638.2,1638.0,6.04297948]
[1693675940181,10.2709,1638.2,1638.0,5.98197948]
[1693675940573,10.2709,1638.2,1638.0,6.04297948]
[1693675941175,10.2709,1638.2,1638.0,5.98197948]
[1693675941675,0.00458001,1638.1,1638.0,5.98197948]
[1693675942680,10.2709,1638.2,1638.0,5.98197948]
[1693675945371,10.2709,1638.2,1638.0,6.04297948]
[1693675945576,10.2709,1638.2,1638.0,5.98197948]
[1693675945781,11.86788427,1638.2,1638.0,5.98197948]
[1693675946080,11.86788427,1638.2,1638.0,6.04297948]
[1693675946276,11.86788427,1638.2,1638.0,5.98197948]
[1693675950484,14.26336068,1638.2,1638.0,5.98197948]
[1693675950885,7.58534089,1638.1,1638.0,0.49097948]
[1693675951076,8.38383303,1638.1,1637.9,0.00915723]
[1693675951279,8.38383303,1638.1,1637.8,0.90666185]
[1693675951280,12.22392237,1638.0,1637.8,0.90666185]
[1693675951479,14.71002237,1638.0,1637.6,10.6108]
[1693675951687,2.6232,1637.9,1637.6,10.6108]
[1693675951983,5.1371,1637.8,1637.6,10.6108]
[1693675953081,5.1371,1637.8,1637.6,11.53884093]
[1693675953480,7.6232,1637.8,1637.6,11.53884093]
[1693675953983,2.39547641,1637.7,1637.6,3.48684093]
[1693675954882,2.39547641,1637.7,1637.6,2.5588]
[1693675956180,2.39547641,1637.7,1637.6,3.05212338]
[1693675956381,2.70087533,1637.7,1637.6,3.05212338]
[1693675956583,2.70542316,1637.7,1637.6,3.05212338]
[1693675956987,3.5039153,1637.7,1637.6,3.05212338]
[1693675957287,5.1371,1637.6,1637.4,6.40672697]
[1693675957491,3.98864983,1637.5,1637.4,7.9807]
[1693675957685,3.98864983,1637.5,1637.4,8.09294262]
[1693675958079,2.3931899,1637.5,1637.4,8.09294262]
[1693675958583,3.98853223,1637.5,1637.4,8.59100621]
[1693675959684,2.3931899,1637.5,1637.4,8.47876359]
[1693675960787,2.69861887,1637.5,1637.4,8.47876359]
[1693675960992,7.6501,1637.6,1637.4,8.47876359]
[1693675961192,7.6501,1637.6,1637.4,5.98906359]
[1693675964391,9.24533036,1637.6,1637.4,5.98906359]
[1693675964992,7.6501,1637.6,1637.4,5.98906359]
[1693675965187,9.24533036,1637.6,1637.4,5.98906359]
[1693675967393,5.491,1637.5,1637.4,0.49806359]
[1693675967589,5.491,1637.5,1637.3,3.46774746]
[1693675967800,5.1371,1637.4,1637.3,3.46774746]
[1693675968002,5.44253323,1637.4,1637.3,1.01899405]
[1693675968300,7.83597699,1637.4,1637.3,1.01899405]
[1693675968502,7.83597699,1637.4,1637.3,1.49875358]
[1693675968804,7.83597699,1637.4,1637.3,0.11224659]
[1693675969097,5.44253323,1637.4,1637.3,0.11224659]
[1693675969299,7.83618597,1637.4,1637.3,0.11224659]
[1693675970200,8.63650178,1637.4,1637.3,0.11224659]
[1693675970403,5.44253323,1637.4,1637.3,0.11224659]
[1693675970906,8.63650178,1637.4,1637.3,0.11224659]
[1693675971697,8.64102632,1637.4,1637.3,0.11224659]
[1693675972401,11.10312632,1637.4,1637.3,0.11224659]
[1693675973498,10.30357162,1637.4,1637.3,0.11224659]
[1693675973701,8.64102632,1637.4,1637.3,1.79621922]
[1693675974003,3.50392632,1637.4,1637.3,7.28721922]
[1693675974207,2.70443768,1637.4,1637.3,7.28721922]
[1693675975003,2.39900445,1637.4,1637.3,7.28721922]
[1693675975601,2.39900445,1637.4,1637.3,7.17497263]
[1693675975800,2.39900445,1637.4,1637.3,7.28721893]
[1693675975997,0.00452454,1637.4,1637.3,7.28721893]
[1693675976399,0.00452454,1637.4,1637.3,9.81281893]
[1693675976703,5.491,1637.6,1637.3,9.81281893]
[1693675976899,2.86716352,1637.5,1637.3,9.70057263]
[1693675980209,7.76093648,1637.6,1637.4,1.20926344]
[1693675980603,10.6281,1637.6,1637.4,1.20926344]
[1693675981808,10.6281,1637.6,1637.3,10.3869]
[1693675982006,2.3833,1637.5,1637.3,10.3869]
[1693675982403,2.86716352,1637.4,1637.3,8.0166]
[1693675982608,5.1371,1637.4,1637.3,5.491]
[1693675986613,5.14163437,1637.4,1637.3,5.491]
[1693675987615,5.14163437,1637.4,1637.3,0.11225198]
[1693675987815,5.14163437,1637.4,1637.2,6.90982429]
[1693675988112,5.14163437,1637.4,1637.2,8.59379692]
[1693675988814,5.14163437,1637.4,1637.3,0.11225209]
[1693675990116,5.14163437,1637.4,1637.2,8.59379692]
[1693675991110,6.73800951,1637.4,1637.2,8.59379692]
[1693675993212,9.13248942,1637.4,1637.2,8.59379692]
[1693675993612,6.73800951,1637.4,1637.2,8.59379692]
[1693675994218,9.13248942,1637.4,1637.2,8.59379692]
[1693675995519,1.59637514,1637.3,1637.2,8.59379692]
[1693675996820,2.87169789,1637.4,1637.2,8.59379692]
[1693675997021,1.60013334,1637.3,1637.2,8.59379692]
[1693675997221,1.60013334,1637.3,1637.2,9.80306036]
[1693675997819,1.60013334,1637.3,1637.2,9.91531219]
[1693675998222,2.87169789,1637.4,1637.2,9.91531219]
[1693675998423,2.87169789,1637.4,1637.3,0.11225183]
[1693675999221,2.74711464,1637.4,1637.3,0.11225183]
[1693676001923,2.74711464,1637.4,1637.3,5.60325183]
[1693676006022,2.74711464,1637.4,1637.3,5.491]
[1693676006233,6.747448,1637.4,1637.3,5.491]
[1693676007133,4.34724798,1637.4,1637.3,5.491]
[1693676012136,1.60466771,1637.4,1637.3,5.491]
[1693676012532,0.00453437,1637.4,1637.2,4.31206036]
[1693676012733,0.00453437,1637.4,1637.3,12.17991858]
[1693676013138,0.00453437,1637.4,1637.3,12.06767104]
[1693676014836,0.00453437,1637.4,1637.3,14.59387104]
[1693676015239,0.00453437,1637.4,1637.3,20.98223379]
[1693676015742,10.4859,1637.7,1637.3,14.59387104]
[1693676015932,10.4859,1637.7,1637.4,1.20926344]
[1693676016135,10.4859,1637.7,1637.5,1.80855588]
[1693676016440,15.623,1637.7,1637.5,1.80855588]
[1693676016633,0.00453931,1637.6,1637.5,1.80855588]
[1693676017631,15.623,1637.7,1637.5,1.80855588]
[1693676020541,10.132,1637.7,1637.5,7.29955588]
[1693676021338,2.40020002,1637.6,1637.5,5.491]
[1693676024246,2.70563158,1637.6,1637.5,5.491]
[1693676024953,2.40020002,1637.6,1637.5,5.491]
[1693676025247,2.70563375,1637.6,1637.5,5.491]
[1693676025640,2.70563375,1637.6,1637.5,7.29955588]
[1693676025843,2.70563375,1637.6,1637.5,5.491]
[1693676026046,2.40020002,1637.6,1637.5,5.491]
[1693676026850,2.70563343,1637.6,1637.5,5.491]
[1693676027252,2.40020002,1637.6,1637.5,7.29955588]
[1693676028350,10.132,1637.7,1637.5,7.29955588]
[1693676031655,0.00453931,1637.6,1637.5,7.29955588]
[1693676032747,10.132,1637.7,1637.5,7.29955588]
[1693676036445,11.73434651,1637.7,1637.5,7.77888633]
[1693676040751,11.73434651,1637.7,1637.5,5.97033045]
[1693676041859,11.73434651,1637.7,1637.5,0.47933045]
[1693676042056,11.73434651,1637.7,1637.4,9.21216344]
[1693676043654,2.40020002,1637.6,1637.5,1.80855588]
[1693676043853,2.40020002,1637.6,1637.4,9.21216344]
[1693676044051,1.60228176,1637.5,1637.4,9.21216344]
[1693676044259,2.10082891,1637.5,1637.4,11.02071932]
[1693676044460,2.10082891,1637.5,1637.4,8.50881932]
[1693676045656,2.10082891,1637.5,1637.4,9.00730735]
[1693676046758,2.10536173,1637.5,1637.4,9.00730735]
[1693676047062,1.60681458,1637.5,1637.4,9.00730735]
[1693676050563,0.00453282,1637.5,1637.4,9.00730735]
[1693676050970,0.00453282,1637.5,1637.4,9.11955382]
[1693676051171,5.14163282,1637.5,1637.4,0.49848803]
[1693676051367,10.63263282,1637.5,1637.2,8.60573238]
[1693676051564,15.55893282,1637.5,1637.2,1.41882429]
[1693676051864,5.491,1637.4,1637.1,10.51]
[1693676052064,5.64090562,1637.3,1637.2,0.11226278]
[1693676052269,8.02760562,1637.3,1637.2,0.11226278]
[1693676052671,8.02760562,1637.3,1637.1,6.39551754]
[1693676052865,10.58380562,1637.3,1637.1,6.39551754]
[1693676053468,10.58380562,1637.3,1637.2,0.11226432]
[1693676054767,10.58380562,1637.3,1637.1,6.87382169]
[1693676055274,10.88920509,1637.3,1637.1,6.87382169]
[1693676057472,10.38539947,1637.3,1637.1,6.87382169]
[1693676058665,11.98768123,1637.3,1637.1,6.87382169]
[1693676059171,11.98768123,1637.3,1637.1,5.96930415]
[1693676060176,10.38539947,1637.3,1637.1,5.96930415]
[1693676061672,0.00450825,1637.2,1637.1,5.96930415]
[1693676062676,0.00450825,1637.2,1637.1,7.77786003]
[1693676066174,0.00450825,1637.2,1637.1,7.8901276]
[1693676066976,0.00450825,1637.2,1637.1,6.08157172]
[1693676067375,0.00450825,1637.2,1637.1,7.8901276]
[1693676070283,0.30990772,1637.2,1637.1,6.08157172]
[1693676070474,0.30990772,1637.2,1637.1,5.96930415]
[1693676070675,0.30990772,1637.2,1637.1,6.0815771]
[1693676070882,0.30990772,1637.2,1637.1,5.96930415]
[1693676071976,0.30990772,1637.2,1637.1,0.47830415]
[1693676072182,0.30990772,1637.2,1637.0,8.80064742]
[1693676072377,2.86716352,1637.1,1637.0,8.80064742]
[1693676072579,2.86716352,1637.1,1637.0,8.91292074]
[1693676072782,5.49556352,1637.1,1637.0,8.91292074]
[1693676072986,7.7655,1637.1,1637.0,8.91292074]
[1693676074282,7.7655,1637.1,1637.0,8.80064742]
[1693676074487,7.7655,1637.1,1637.0,8.91292138]
[1693676074703,13.2565,1637.1,1636.5,13.59333351]
[1693676074982,5.96878162,1637.0,1636.7,10.3973]
[1693676075184,5.1371,1636.9,1636.7,7.9731]
[1693676075387,7.594,1636.9,1636.7,7.9731]
[1693676075588,10.014,1636.9,1636.7,7.9731]
[1693676076686,0.00447718,1636.8,1636.7,7.9731]
[1693676076989,0.00447718,1636.8,1636.5,7.9152]
[1693676077186,0.00447718,1636.8,1636.6,0.11229762]
[1693676077379,5.1371,1636.7,1636.6,0.11229762]
[1693676077889,5.1371,1636.7,1636.6,0.11229815]
[1693676078190,7.588,1636.7,1636.6,0.11229815]
[1693676078583,7.588,1636.7,1636.5,10.3973]
[1693676079087,7.588,1636.7,1636.6,0.11229743]
[1693676079588,0.00447718,1636.8,1636.6,7.41185331]
[1693676079795,0.00447718,1636.8,1636.7,5.60329073]
[1693676080186,0.00447718,1636.8,1636.7,12.02465417]
[1693676080584,2.573,1637.1,1636.7,12.02465417]
[1693676080783,4.3633859,1637.0,1636.9,5.491]
[1693676080988,7.23054942,1637.0,1636.9,5.491]
[1693676081390,7.23054942,1637.0,1636.9,7.29955588]
[1693676081586,7.23054942,1637.0,1636.9,5.491]
[1693676082686,7.23054942,1637.0,1636.9,8.50881932]
[1693676082687,2.09344942,1637.0,1636.9,8.50881932]
[1693676082987,2.09344942,1637.0,1636.9,15.41494361]
[1693676082988,0.49315786,1637.0,1636.9,15.41494361]
[1693676085494,0.79855733,1637.0,1636.9,15.41494361]
[1693676086790,3.66572085,1637.0,1636.9,12.39712429]
[1693676087896,3.66572085,1637.0,1636.9,12.45822429]
[1693676088493,3.66572085,1637.0,1636.9,12.57050132]
[1693676088688,3.66572085,1637.0,1636.9,14.3790572]
[1693676088891,3.66572085,1637.0,1636.9,12.57050132]
[1693676089094,3.66572085,1637.0,1636.9,5.491]
[1693676089493,6.16772085,1637.0,1636.9,5.491]
[1693676091197,5.67456299,1637.0,1636.9,5.491]
[1693676091898,5.67907347,1637.0,1636.8,5.5521]
[1693676092203,8.26417347,1637.0,1636.8,5.5521]
[1693676092601,7.76093648,1636.9,1636.7,5.2121]
[1693676092798,2.86716352,1636.8,1636.7,5.71104596]
[1693676093000,2.86716352,1636.8,1636.7,5.82333847]
[1693676093201,5.24616352,1636.8,1636.7,3.20383847]
[1693676096001,6.8444028,1636.8,1636.7,3.20383847]
[1693676096703,6.8444028,1636.8,1636.7,3.09154596]
[1693676100110,7.14980227,1636.8,1636.7,3.09154596]
[1693676103211,5.55156299,1636.8,1636.7,4.90010184]
[1693676103603,5.55156299,1636.8,1636.7,5.01239653]
[1693676104004,5.55156299,1636.8,1636.7,3.20384065]
[1693676105710,5.55156299,1636.8,1636.7,0.49894596]
[1693676105906,5.55156299,1636.8,1636.7,0.11229748]
[1693676106108,5.55156299,1636.8,1636.6,8.0053]
[1693676106308,2.26993648,1636.7,1636.6,8.0053]
[1693676106511,2.26993648,1636.7,1636.6,2.62659936]
[1693676106707,2.27442365,1636.7,1636.6,2.62659936]
[1693676108819,2.27442365,1636.7,1636.6,2.62660337]
[1693676109223,2.27442365,1636.7,1636.6,0.11230337]
[1693676109422,7.76542365,1636.7,1636.4,1.45845033]
[1693676109623,2.86716352,1636.6,1636.5,0.11230825]
[1693676109818,5.42766352,1636.6,1636.5,0.11230825]
[1693676111319,7.02674462,1636.6,1636.5,0.11230825]
[1693676111620,7.02674462,1636.6,1636.4,0.54879279]
[1693676111621,8.35816352,1636.6,1636.4,0.48769279]
[1693676111921,11.75956022,1636.5,1636.1,0.97944488]
[1693676112117,5.491,1636.3,1636.1,0.0611]
[1693676112333,2.86716352,1636.2,1636.1,0.0611]
[1693676113028,2.86716352,1636.2,1636.1,0.17342439]
[1693676113429,2.86716352,1636.2,1636.1,0.17342378]
[1693676114232,2.86716352,1636.2,1636.1,0.0611]
[1693676114626,2.86716352,1636.2,1636.1,0.17342452]
[1693676115032,3.17256299,1636.2,1636.1,0.17342452]
[1693676115428,3.17256299,1636.2,1636.1,0.0611]
[1693676118936,3.17256299,1636.2,1636.1,0.17342578]
[1693676121737,3.17682063,1636.2,1636.1,0.17342578]
[1693676124935,3.17682063,1636.2,1636.1,0.11232578]
[1693676127028,3.17682063,1636.2,1636.0,6.94061558]
[1693676127237,2.26993648,1636.1,1636.0,6.94061558]
[1693676127435,2.26993648,1636.1,1636.0,7.05295217]
[1693676127628,4.77213648,1636.1,1636.0,7.05295217]
[1693676129234,4.77213648,1636.1,1636.0,6.15007802]
[1693676130237,5.07753595,1636.1,1636.0,6.15007802]
[1693676131236,10.56853595,1636.1,1636.0,0.65907802]
[1693676131843,5.07753595,1636.1,1636.0,0.65907802]
[1693676133841,5.07753595,1636.1,1636.0,7.9586339]
[1693676133842,0.30539947,1636.1,1636.0,7.9586339]
[1693676138947,3.17256299,1636.1,1636.0,6.15007802]
[1693676140151,5.69006299,1636.1,1636.0,6.15007802]
[1693676140944,5.69006299,1636.1,1636.0,6.08897802]
[1693676141249,7.28955419,1636.1,1636.0,6.08897802]
[1693676141442,5.69006299,1636.1,1636.0,0.48564143]
[1693676141647,5.69006299,1636.1,1635.9,8.81893363]
[1693676141848,8.21916299,1636.1,1635.9,8.81893363]
[1693676142048,8.21916299,1636.1,1636.0,0.11233492]
[1693676143654,3.17256299,1636.1,1636.0,0.17343492]
[1693676143965,0.30539947,1636.1,1636.0,7.4729908]
[1693676146250,3.17256299,1636.1,1636.0,7.4729908]
[1693676146451,3.17256299,1636.1,1636.0,5.66443492]
[1693676148956,3.17256299,1636.1,1636.0,5.5521]
[1693676151659,3.17256299,1636.1,1636.0,7.36065588]
[1693676151855,3.17256299,1636.1,1636.0,7.47298549]
[1693676152060,10.26305419,1636.1,1635.9,1.38377206]